bitfinex-derivatives/quotes_ETHF0:USTF0_20250323
["timestamp","ask_amount","ask_price","bid_price","bid_amount"]
[1742717376752,0.0074744,2008.4,2008.3,4.39062034]
[1742717377153,0.0074744,2008.4,2008.3,4.39063395]
[1742717377756,1.2878744,2008.4,2008.3,4.39063395]
[1742717378261,1.2878744,2008.4,2008.3,7.59843395]
[1742717379855,1.2878744,2008.4,2008.3,6.65033395]
[1742717380852,1.2878744,2008.4,2008.3,6.65072534]
[1742717381761,1.2878744,2008.4,2008.3,9.94672534]
[1742717382856,1.2878744,2008.4,2008.3,9.94683986]
[1742717384656,1.2878744,2008.4,2008.3,9.94697637]
[1742717385161,1.2878744,2008.4,2008.3,9.94772588]
[1742717386562,1.2878744,2008.4,2008.3,9.9478275]
[1742717387864,1.2878744,2008.4,2008.3,10.658968]
[1742717388063,1.2878744,2008.4,2008.3,9.9478275]
[1742717388264,1.2878744,2008.4,2008.3,10.65917763]
[1742717388661,1.2878744,2008.4,2008.3,9.94794838]
[1742717389655,1.2878744,2008.4,2008.3,10.65921205]
[1742717390064,1.2878744,2008.4,2008.3,10.65919246]
[1742717390260,1.2878744,2008.4,2008.3,11.72455884]
[1742717391066,1.2878744,2008.4,2008.3,11.01332096]
[1742717391457,1.2878744,2008.4,2008.3,10.49026848]
[1742717391853,1.2878744,2008.4,2008.3,9.49001493]
[1742717392368,1.2878744,2008.4,2008.3,10.91692615]
[1742717392570,1.2878744,2008.4,2008.3,12.67828213]
[1742717394469,1.2878744,2008.4,2008.3,12.67855549]
[1742717398375,1.2878744,2008.4,2008.3,12.6791656]
[1742717398769,1.2878744,2008.4,2008.3,11.39912921]
[1742717398965,1.2878744,2008.4,2008.3,12.67910713]
[1742717401874,1.2878744,2008.4,2008.3,12.67909633]
[1742717402875,1.2878744,2008.4,2008.3,13.902461]
[1742717403973,1.2878744,2008.4,2008.3,13.93668493]
[1742717404381,1.2878744,2008.4,2008.3,13.93687819]
[1742717404774,1.2878744,2008.4,2008.3,15.35975519]
[1742717405080,0.9095,2008.5,2008.4,0.99599]
[1742717405380,0.9095,2008.5,2008.4,5.73447221]
[1742717405982,0.9095,2008.5,2008.4,5.7235606]
[1742717406177,0.9233,2008.6,2008.5,0.99594]
[1742717406380,0.9233,2008.6,2008.5,4.49208857]
[1742717406779,0.9233,2008.6,2008.5,6.25344455]
[1742717408089,0.9233,2008.6,2008.5,6.25344899]
[1742717408386,2.2584,2008.6,2008.5,6.25344899]
[1742717410088,2.2584,2008.6,2008.5,6.25337793]
[1742717410489,2.2584,2008.6,2008.5,6.25337254]
[1742717411985,2.2584,2008.6,2008.5,4.06499598]
[1742717412289,2.2584,2008.6,2008.5,6.25366929]
[1742717413992,2.2584,2008.6,2008.5,4.06499598]
[1742717414187,2.2584,2008.6,2008.5,6.25344519]
[1742717415988,2.2584,2008.6,2008.5,5.49293015]
[1742717416191,2.2584,2008.6,2008.5,6.2446206]
[1742717416690,2.2584,2008.6,2008.5,6.24440531]
[1742717420091,2.2584,2008.6,2008.5,6.24433602]
[1742717420293,2.2584,2008.6,2008.5,5.49269663]
[1742717421291,3.25429,2008.6,2008.5,5.49269663]
[1742717421894,2.2584,2008.6,2008.5,5.49269663]
[1742717422098,2.2584,2008.6,2008.5,5.49267561]
[1742717422685,2.2584,2008.6,2008.5,5.49266756]
[1742717426998,3.25429,2008.6,2008.5,5.49266756]
[1742717427799,2.2584,2008.6,2008.5,5.49266756]
[1742717428191,2.2584,2008.6,2008.5,5.49278492]
[1742717430804,2.2584,2008.6,2008.5,6.22761957]
[1742717431803,2.2584,2008.6,2008.5,5.49278492]
[1742717434104,2.2584,2008.6,2008.5,6.22767145]
[1742717434304,2.2584,2008.6,2008.5,6.22784075]
[1742717436303,2.2584,2008.6,2008.5,5.49299227]
[1742717436505,2.2584,2008.6,2008.5,6.22789583]
[1742717436701,1.3351,2008.6,2008.5,6.22789583]
[1742717438301,1.3351,2008.6,2008.5,6.22786023]
[1742717440208,0.9027744,2008.7,2008.6,0.99589]
[1742717440408,0.9027744,2008.7,2008.6,3.71505342]
[1742717441009,0.9027744,2008.7,2008.6,4.39250534]
[1742717441207,1.8986144,2008.7,2008.6,4.39250534]
[1742717441710,3.2570144,2008.7,2008.6,4.39250534]
[1742717442414,3.2570144,2008.7,2008.6,4.39261555]
[1742717447008,3.2570144,2008.7,2008.6,4.39261298]
[1742717450416,3.2570144,2008.7,2008.6,4.39265223]
[1742717452032,3.2570144,2008.7,2008.6,3.39676223]
[1742717452432,3.2570144,2008.7,2008.6,4.39271947]
[1742717453031,3.2570144,2008.7,2008.6,4.39267244]
[1742717454034,2.2611744,2008.7,2008.6,4.39267244]
[1742717454729,3.2570144,2008.7,2008.6,4.39267244]
[1742717456623,3.2570144,2008.7,2008.6,4.39266695]
[1742717458731,3.2570144,2008.7,2008.6,4.39271646]
[1742717459033,3.2570144,2008.7,2008.6,2.96453461]
[1742717459233,3.2570144,2008.7,2008.6,4.39271947]
[1742717460736,3.2570144,2008.7,2008.6,4.39264038]
[1742717462836,2.2611744,2008.7,2008.6,4.39264038]
[1742717464229,2.2611744,2008.7,2008.6,4.39262645]
[1742717464629,2.2611744,2008.7,2008.6,4.39259795]
[1742717465237,3.2570144,2008.7,2008.6,4.39259795]
[1742717465636,2.2611744,2008.7,2008.6,4.39259795]
[1742717466134,2.2611744,2008.7,2008.6,2.28709]
[1742717466437,2.2611744,2008.7,2008.6,4.39946375]
[1742717468737,3.2570144,2008.7,2008.6,4.39946375]
[1742717470238,3.2570144,2008.7,2008.6,4.39942732]
[1742717470442,2.2611744,2008.7,2008.6,4.39942732]
[1742717470638,3.2570144,2008.7,2008.6,4.39942732]
[1742717470827,3.2570144,2008.7,2008.6,4.39942508]
[1742717472639,2.2611744,2008.7,2008.6,4.39942508]
[1742717474338,2.2611744,2008.7,2008.6,4.39932745]
[1742717475739,3.2078,2009.7,2008.6,19.62814557]
[1742717475944,3.2078,2009.7,2009.2,3.2078]
[1742717476240,6.4958,2010.1,2009.8,0.99528]
[1742717476543,0.99525,2009.9,2009.8,0.99528]
[1742717476936,0.99525,2009.9,2009.6,0.0074744]
[1742717477135,6.5032744,2010.1,2009.9,0.99525]
[1742717477341,4.20393,2010.0,2009.9,0.99525]
[1742717477544,3.2087,2010.0,2009.9,0.99525]
[1742717479040,4.2039,2010.0,2009.9,0.99525]
[1742717480142,3.2152744,2010.1,2010.0,0.9952]
[1742717480537,4.2104244,2010.1,2010.0,0.9952]
[1742717480737,6.4523244,2010.1,2010.0,0.9952]
[1742717480938,0.9952,2010.0,2009.9,0.99521]
[1742717481144,3.2256,2010.0,2009.9,0.99521]
[1742717482145,2.2304,2010.0,2009.9,0.99521]
[1742717483738,3.2256,2010.0,2009.9,0.99521]
[1742717483944,2.2304,2010.0,2009.9,0.99521]
[1742717484549,3.2256,2010.0,2009.9,0.99521]
[1742717485551,3.2256,2010.0,2009.7,6.4948]
[1742717485552,0.9953,2009.8,2009.7,0.99531]
[1742717485850,0.9953,2009.8,2009.6,0.0074744]
[1742717485851,0.99535,2009.7,2009.6,0.0074744]
[1742717486047,3.25265,2009.7,2009.6,0.0074744]
[1742717490147,3.2078,2009.9,2009.6,0.0074744]
[1742717490451,0.9953,2009.8,2009.7,0.99532]
[1742717490653,6.4938,2009.9,2009.8,0.9953]
[1742717490840,8.7581,2009.9,2009.7,1.93201]
[1742717491049,8.7581,2009.9,2009.8,0.9953]
[1742717491248,1.269,2009.9,2009.8,0.9953]
[1742717491557,0.9204,2010.0,2009.9,0.99525]
[1742717491757,2.2339,2010.0,2009.9,0.99525]
[1742717491961,3.22914,2010.0,2009.8,0.99526]
[1742717492151,0.99525,2009.9,2009.8,0.99526]
[1742717492555,2.2339,2010.0,2009.9,0.99525]
[1742717492754,3.2291,2010.0,2009.9,0.99525]
[1742717492963,2.2339,2010.0,2009.9,0.99525]
[1742717493158,1.0026644,2010.1,2010.0,0.9952]
[1742717493357,2.3161644,2010.1,2010.0,0.9952]
[1742717494056,0.0074744,2010.1,2010.0,0.9952]
[1742717494358,0.0074744,2010.1,2010.0,5.1868]
[1742717494661,0.0074744,2010.1,2010.0,6.4826]
[1742717502364,0.62157477,2865.9,2010.0,6.4826]
[1742717502365,3.2078,2011.4,2010.0,17.7834]
[1742717502558,3.2078,2011.1,2010.6,3.2078]
[1742717502763,0.9948,2010.8,2010.7,4.27884]
[1742717502963,0.99474,2011.0,2010.7,3.284]
[1742717503156,0.8826,2010.9,2010.7,4.27882]
[1742717503468,0.8826,2010.9,2010.8,0.9948]
[1742717503667,0.8826,2010.9,2010.8,2.2654]
[1742717504766,2.2492,2010.9,2010.8,2.2654]
[1742717507269,0.8826,2010.9,2010.8,2.2654]
[1742717508966,1.36585817,2011.0,2010.9,0.99475]
[1742717509268,0.00485817,2011.0,2010.9,5.53975]
[1742717510567,0.00485817,2011.0,2010.9,6.46715]
[1742717512967,0.00485817,2011.0,2010.9,3.18415]
[1742717513171,0.00485817,2011.0,2010.9,1.262]
[1742717513371,0.00485817,2011.0,2010.9,2.25675]
[1742717517771,3.1826,2011.3,2011.2,0.99461]
[1742717518362,3.1826,2011.3,2011.2,2.38901]
[1742717520772,3.1826,2011.3,2011.2,3.27201]
[1742717521273,3.1826,2011.3,2011.2,3.81577797]
[1742717521577,4.17716,2011.3,2011.2,2.38901]
[1742717521878,4.17716,2011.3,2011.2,0.99461]
[1742717522073,3.1826,2011.3,2011.0,1.2681]
[1742717522380,2.32974,2011.2,2011.1,3.282]
[1742717523078,2.32974,2011.2,2011.1,4.27665]
[1742717523273,2.32974,2011.2,2011.0,2.26277]
[1742717523483,2.32975,2011.1,2011.0,2.26277]
[1742717523680,1.3351,2011.1,2011.0,2.807162]
[1742717523875,2.32975,2011.1,2011.0,2.807162]
[1742717524073,1.3351,2011.1,2011.0,2.807162]
[1742717524279,2.32975,2011.1,2011.0,2.807162]
[1742717524780,1.3351,2011.1,2011.0,2.807162]
[1742717525682,2.32975,2011.1,2011.0,2.807162]
[1742717525887,0.99477,2010.9,2010.6,47.3771244]
[1742717526081,0.99477,2010.9,2010.8,2.25776]
[1742717526277,0.99477,2010.9,2010.8,2.80240648]
[1742717526483,0.99477,2010.9,2010.8,1.80764648]
[1742717526780,0.99477,2010.9,2010.8,0.54464648]
[1742717526984,0.99477,2010.9,2010.8,1.53944648]
[1742717527186,0.99477,2010.9,2010.8,1.53969035]
[1742717527386,0.99477,2010.9,2010.8,0.54489035]
[1742717527683,0.99477,2010.9,2010.8,1.53969035]
[1742717527875,0.99477,2010.9,2010.8,2.85159035]
[1742717528487,0.99477,2010.9,2010.8,1.85679035]
[1742717528980,0.99477,2010.9,2010.8,0.54489035]
[1742717529180,0.9948,2010.8,2010.7,5.58772]
[1742717529389,0.9948,2010.8,2010.7,7.00585584]
[1742717529586,0.9948,2010.8,2010.7,0.54530127]
[1742717529787,4.2026,2010.8,2010.7,0.54530127]
[1742717530084,0.99485,2010.7,2010.6,0.0074744]
[1742717530386,2.37745,2010.7,2010.6,0.0074744]
[1742717535783,1.3826,2010.7,2010.6,1.0023744]
[1742717536289,1.3826,2010.7,2010.6,0.0074744]
[1742717536290,2.37745,2010.7,2010.6,0.0074744]
[1742717536680,2.37745,2010.7,2010.6,1.3470744]
[1742717539090,2.37745,2010.7,2010.6,2.3419744]
[1742717539592,1.3826,2010.7,2010.6,2.3419744]
[1742717542589,2.37745,2010.7,2010.6,2.3419744]
[1742717543383,1.3826,2010.7,2010.6,2.3419744]
[1742717543892,4.2026,2010.8,2010.7,0.99485]
[1742717544190,5.4822,2010.8,2010.7,1.3795]
[1742717544493,5.4822,2010.8,2010.7,2.37435]
[1742717544683,6.4344,2010.8,2010.7,2.37435]
[1742717545587,6.4344,2010.8,2010.7,1.3795]
[1742717547091,6.4344,2010.8,2010.7,2.37435]
[1742717547679,6.4344,2010.8,2010.7,1.3795]
[1742717548194,6.4344,2010.8,2010.7,2.37435]
[1742717549592,3.2078,2011.3,2010.7,6.12808033]
[1742717549794,1.2897,2011.1,2011.0,0.9947]
[1742717550689,1.2897,2011.1,2011.0,1.54043676]
[1742717551093,1.2897,2011.1,2011.0,1.54042265]
[1742717551594,1.2897,2011.1,2011.0,0.9947]
[1742717551989,1.2897,2011.1,2011.0,1.54051845]
[1742717552183,0.99464,2011.2,2011.0,1.54051845]
[1742717552382,2.27074,2011.2,2011.0,0.9947]
[1742717552584,2.27074,2011.2,2011.1,0.99465]
[1742717552796,2.27074,2011.2,2010.9,1.8889]
[1742717553091,2.27074,2011.2,2011.1,0.99465]
[1742717553492,1.2761,2011.2,2011.1,0.99465]
[1742717553690,2.27071,2011.2,2011.1,0.99465]
[1742717553994,1.2761,2011.2,2011.1,0.99465]
[1742717555295,2.27071,2011.2,2011.1,0.99465]
[1742717557989,5.0688,2011.4,2011.0,3.28]
[1742717558288,0.99459,2011.3,2011.1,0.99461]
[1742717558490,2.29411,2011.2,2011.0,4.27467]
[1742717558791,1.2995,2011.1,2011.0,4.27467]
[1742717558992,2.2137,2011.1,2011.0,4.82058681]
[1742717559594,2.2137,2011.1,2011.0,4.82054773]
[1742717559795,2.2137,2011.1,2011.0,4.82052839]
[1742717563097,2.2137,2011.1,2011.0,6.19672839]
[1742717563800,2.2137,2011.1,2011.0,6.19677044]
[1742717567509,2.2137,2011.1,2011.0,6.1969559]
[1742717567712,5.17453,2011.4,2011.2,0.99458]
[1742717567906,1.3728,2011.3,2011.2,0.99458]
[1742717568108,3.26426,2011.3,2011.1,0.99462]
[1742717568505,1.3728,2011.2,2011.1,0.99462]
[1742717568707,1.3728,2011.2,2011.1,1.54069217]
[1742717568913,2.36741,2011.2,2011.1,0.54607217]
[1742717569113,1.3728,2011.2,2011.1,1.54072217]
[1742717569412,1.3728,2011.2,2011.1,1.54073074]
[1742717569811,1.3728,2011.2,2011.1,1.5407537]
[1742717571317,1.3728,2011.2,2011.1,1.54078372]
[1742717573516,1.3728,2011.2,2011.1,0.99465]
[1742717582237,2.36743,2011.2,2011.1,0.99465]
[1742717582637,2.36743,2011.2,2011.0,4.27467]
[1742717582939,1.89148,2011.3,2011.1,0.99465]
[1742717583129,0.909,2011.2,2011.1,2.26695]
[1742717583333,1.90361,2011.2,2011.1,2.26695]
[1742717584538,3.29921,2011.2,2011.1,2.81326583]
[1742717585131,3.2078,2012.0,2011.3,0.99456]
[1742717585335,1.3956,2011.6,2011.5,0.99446]
[1742717585534,6.106,2011.9,2011.5,42.68141583]
[1742717585730,1.3913,2011.8,2011.7,0.99436]
[1742717586132,1.3913,2011.8,2011.7,1.54098317]
[1742717586528,5.1117,2011.9,2011.8,0.99431]
[1742717586838,6.503,2011.9,2011.8,2.90111864]
[1742717587232,6.503,2011.9,2011.8,2.90112508]
[1742717588239,3.225,2011.9,2011.8,2.90112508]
[1742717588835,3.225,2011.9,2011.8,2.32941]
[1742717591034,4.21926,2011.9,2011.8,2.32941]
[1742717592435,3.225,2011.9,2011.8,2.32941]
[1742717592630,4.21926,2011.9,2011.8,2.32941]
[1742717592938,2.2683,2011.9,2011.8,2.32941]
[1742717593845,3.26256,2011.9,2011.8,2.32941]
[1742717595142,2.2683,2011.9,2011.8,2.32941]
[1742717595338,3.2078,2012.0,2011.9,0.99426]
[1742717595534,5.4532,2012.0,2011.9,2.29936]
[1742717596143,6.44741,2012.0,2011.9,1.3051]
[1742717599046,0.99432,2011.8,2011.7,0.99436]
[1742717599247,3.2078,2012.0,2011.9,0.99426]
[1742717600344,3.2078,2012.0,2011.9,2.34536]
[1742717600541,3.2078,2012.0,2011.9,5.62136]
[1742717600838,0.99421,2012.0,2011.9,0.57012913]
[1742717601043,0.99431,2011.8,2011.7,1.336]
[1742717601238,0.99431,2011.8,2011.7,1.90630078]
[1742717601440,0.99431,2011.8,2011.6,4.20962582]
[1742717601441,0.99436,2011.7,2011.6,3.21525582]
[1742717601740,1.94136,2011.7,2011.6,3.21525582]
[1742717602340,0.947,2011.7,2011.6,5.54566582]
[1742717602545,1.94136,2011.7,2011.6,5.54566582]
[1742717602741,3.21526,2011.7,2011.6,4.55125582]
[1742717603445,3.21526,2011.7,2011.6,5.54566582]
[1742717603949,3.21526,2011.7,2011.6,4.55125582]
[1742717605544,2.2209,2011.7,2011.6,6.11633419]
[1742717605747,1.2739,2011.7,2011.6,6.11633419]
[1742717605947,1.2948,2011.8,2011.7,0.99433]
[1742717606146,2.28911,2011.8,2011.7,2.36403]
[1742717607048,1.2948,2011.8,2011.7,2.36406]
[1742717608147,2.28911,2011.8,2011.7,2.36406]
[1742717608342,2.28911,2011.8,2011.7,1.3697]
[1742717609748,2.28911,2011.8,2011.7,2.36406]
[1742717609943,2.28911,2011.8,2011.7,1.3697]
[1742717612451,2.28911,2011.8,2011.7,1.9412816]
[1742717612846,2.28911,2011.8,2011.7,1.94128244]
[1742717613048,2.28911,2011.8,2011.7,1.3697]
[1742717613452,1.2948,2011.8,2011.7,2.93593014]
[1742717614152,1.2948,2011.8,2011.7,2.93590438]
[1742717614754,1.2948,2011.8,2011.7,3.85188398]
[1742717615557,1.2948,2011.8,2011.7,4.77248398]
[1742717616453,1.2948,2011.8,2011.7,4.7724528]
[1742717616857,1.2948,2011.8,2011.7,4.77245839]
[1742717619157,3.2078,2012.4,2012.2,0.99408]
[1742717619358,6.48965,2012.4,2012.3,1.2805]
[1742717619548,4.1362,2012.4,2012.0,3.2078]
[1742717619753,0.9284,2012.4,2012.3,0.99406]
[1742717619952,0.9284,2012.4,2012.3,2.48023528]
[1742717620253,0.919,2012.5,2012.4,0.99401]
[1742717620454,0.919,2012.5,2012.4,2.84603068]
[1742717620761,7.47661,2012.8,2012.4,1.85202068]
[1742717620958,7.47661,2012.8,2012.6,0.99388]
[1742717621163,7.47661,2012.8,2012.7,1.2805]
[1742717621361,0.99381,2012.8,2012.7,1.2805]
[1742717621661,0.99381,2012.9,2012.7,2.27435]
[1742717621851,0.99381,2012.8,2012.7,2.27435]
[1742717622247,0.99381,2012.8,2012.7,1.2805]
[1742717622957,3.275,2013.1,2012.7,1.2805]
[1742717623155,0.99378,2012.9,2012.7,1.2805]
[1742717623357,0.99381,2012.8,2012.7,1.2805]
[1742717623558,0.99381,2012.8,2012.7,2.27436]
[1742717623759,0.9938,2012.9,2012.7,2.27436]
[1742717623957,0.9938,2012.9,2012.8,1.347]
[1742717624158,1.8265,2013.0,2012.6,7.4767]
[1742717624358,0.99381,2012.8,2012.7,1.347]
[1742717625456,3.275,2013.1,2012.7,1.347]
[1742717625656,2.83905,2013.0,2012.8,0.9938]
[1742717625857,2.83905,2013.0,2012.9,1.3015]
[1742717626159,0.99382,2012.8,2012.6,4.20168]
[1742717626359,0.99382,2012.8,2012.7,1.3015]
[1742717627066,1.8453,2013.0,2012.7,1.3015]
[1742717627265,1.8453,2013.0,2012.8,0.99379]
[1742717627458,2.83902,2013.0,2012.9,1.3015]
[1742717628567,3.2078,2013.5,2012.9,4.5093]
[1742717628768,3.35297826,2013.4,2013.0,1.3177]
[1742717628970,0.99365,2013.2,2013.0,2.3114]
[1742717629168,0.9568,2013.1,2013.0,0.9937]
[1742717629368,1.8318,2013.1,2013.0,0.9937]
[1742717629665,5.75751,2013.7,2012.9,3.2078]
[1742717629867,5.75751,2013.7,2012.8,0.8864]
[1742717629868,0.9568,2013.4,2013.2,4.20141]
[1742717630063,3.2078,2013.8,2013.2,6.4818]
[1742717630267,0.99338,2013.7,2013.5,0.99344]
[1742717630472,0.99342,2013.6,2013.4,4.26748]
[1742717630668,0.99342,2013.6,2013.4,1.00093582]
[1742717630869,2.4832,2013.9,2013.5,0.99344]
[1742717631172,0.99342,2013.7,2013.5,0.99344]
[1742717631574,2.4832,2013.9,2013.5,0.99344]
[1742717631873,0.99339,2013.7,2013.5,0.99344]
[1742717632265,7.58891,2014.0,2013.4,0.00745582]
[1742717632467,0.99339,2013.7,2013.5,0.99345]
[1742717632875,0.99347,2013.5,2013.4,0.00745582]
[1742717633874,2.31977,2013.5,2013.4,0.00745582]
[1742717634371,3.26087,2013.5,2013.4,0.00745582]
[1742717635076,6.46867,2013.5,2013.4,0.00745582]
[1742717638070,6.46867,2013.5,2013.4,1.00097582]
[1742717638377,6.46867,2013.5,2013.4,0.00745582]
[1742717638778,3.2078,2013.5,2013.4,1.00097582]
[1742717638980,3.2078,2013.5,2013.4,0.00745582]
[1742717639175,4.5045,2013.5,2013.4,1.00097582]
[1742717640577,5.49797,2013.5,2013.4,1.00097582]
[1742717640772,1.88469,2013.7,2013.4,4.22915582]
[1742717640972,2.2533,2013.7,2013.6,0.99342]
[1742717641167,3.24667,2013.7,2013.5,0.99344]
[1742717641374,2.2533,2013.7,2013.4,3.28045582]
[1742717641573,1.362,2013.6,2013.4,3.28045582]
[1742717641878,2.35546,2013.6,2013.4,4.27396582]
[1742717642079,1.93887,2013.5,2013.4,3.28045582]
[1742717642281,3.30087,2013.5,2013.4,3.28045582]
[1742717642481,3.30087,2013.5,2013.4,0.00745582]
[1742717643277,3.30087,2013.5,2013.4,1.28115582]
[1742717643673,3.30087,2013.5,2013.4,0.00745582]
[1742717646184,0.99367,2013.1,2013.0,9.796]
[1742717646376,0.99372,2013.0,2012.9,4.5727]
[1742717646581,1.93822,2013.0,2012.9,1.3649]
[1742717647377,3.23482,2013.0,2012.9,1.3649]
[1742717647575,0.99381,2012.8,2012.7,3.27945582]
[1742717647778,0.9938,2012.9,2012.7,4.27328582]
[1742717648082,0.9445,2013.0,2012.7,4.27328582]
[1742717648283,0.9445,2013.0,2012.7,0.00745582]
[1742717648284,0.99381,2012.8,2012.7,0.00745582]
[1742717648674,0.99378,2012.9,2012.7,0.00745582]
[1742717648874,0.99378,2012.9,2012.8,0.99381]
[1742717649283,0.0073939,2013.2,2012.7,5.55855582]
[1742717649478,0.0073939,2013.2,2013.1,0.99367]
[1742717650285,1.0010139,2013.2,2013.1,0.99367]
[1742717650484,0.0073939,2013.2,2013.1,0.99367]
[1742717650984,1.3985939,2013.2,2013.1,0.99367]
[1742717651376,1.3985939,2013.2,2013.1,2.33637]
[1742717652387,1.3985939,2013.2,2013.1,2.90668467]
[1742717652580,0.0073939,2013.2,2013.1,2.90668467]
[1742717653378,0.0073939,2013.2,2013.1,2.90593262]
[1742717653879,1.0010139,2013.2,2013.1,1.91226262]
[1742717655287,0.0073939,2013.2,2013.1,2.90593262]
[1742717655484,0.0073939,2013.2,2013.1,3.81794506]
[1742717655688,1.0010139,2013.2,2013.1,3.81794506]
[1742717655885,2.3688139,2013.2,2013.1,2.82427506]
[1742717656280,2.3688139,2013.2,2013.1,1.91253656]
[1742717657579,2.3688139,2013.2,2013.1,2.82484666]
[1742717659077,1.3751939,2013.2,2013.1,2.82484666]
[1742717659284,1.3751939,2013.2,2013.1,3.81851666]
[1742717659480,1.3751939,2013.2,2013.1,3.81938342]
[1742717659988,1.0010139,2013.2,2013.1,2.82585021]
[1742717661389,1.0010139,2013.2,2013.1,1.3427]
[1742717661586,1.0010139,2013.2,2013.1,1.91329985]
[1742717662989,1.0010139,2013.2,2013.1,0.57059985]
[1742717664191,2.2991139,2013.2,2013.1,0.57059985]
[1742717665587,0.99372,2013.0,2012.9,4.4681]
[1742717665892,0.99372,2013.0,2012.9,5.9526916]
[1742717666282,2.31832,2013.0,2012.9,5.9526916]
[1742717667285,2.31832,2013.0,2012.9,5.03901552]
[1742717669387,2.31832,2013.0,2012.9,5.03897978]
[1742717670190,2.31832,2013.0,2012.9,3.77867978]
[1742717670798,0.99372,2013.0,2012.9,5.68572425]
[1742717671093,0.9937,2013.1,2012.9,5.68572425]
[1742717671287,0.9937,2013.1,2013.0,0.57087978]
[1742717671489,0.9937,2013.1,2013.0,1.84289767]
[1742717672499,0.9937,2013.1,2013.0,2.75644665]
[1742717672792,2.3417439,2013.2,2013.0,2.83659767]
[1742717672990,2.3417439,2013.2,2013.1,1.84289767]
[1742717673591,2.3417439,2013.2,2013.1,1.84314925]
[1742717674189,1.0010439,2013.2,2013.1,0.57104925]
[1742717674393,0.99367,2013.1,2013.0,1.3772]
[1742717674599,3.32377,2013.1,2013.0,1.94837745]
[1742717675593,3.32377,2013.1,2013.0,2.86242421]
[1742717676598,3.32377,2013.1,2013.0,1.94844008]
[1742717676901,3.32377,2013.1,2013.0,2.8624654]
[1742717677096,3.32377,2013.1,2013.0,1.94844008]
[1742717677290,3.32377,2013.1,2013.0,2.86248651]
[1742717677488,3.32377,2013.1,2013.0,1.94848933]
[1742717677702,3.32377,2013.1,2013.0,2.8625273]
[1742717677903,3.32377,2013.1,2013.0,2.86248785]
[1742717681699,3.32377,2013.1,2013.0,2.8627254]
[1742717683501,3.32377,2013.1,2013.0,2.86289019]
[1742717683996,3.32377,2013.1,2013.0,2.86288311]
[1742717684304,3.32377,2013.1,2013.0,1.94861658]
[1742717685507,3.32377,2013.1,2013.0,1.94872761]
[1742717687004,3.32377,2013.1,2013.0,1.94871442]
[1742717689011,3.32377,2013.1,2013.0,1.94875121]
[1742717690908,3.32377,2013.1,2013.0,1.94892515]
[1742717691109,2.37057,2013.1,2013.0,2.86362795]
[1742717691305,2.37057,2013.1,2013.0,1.3772]
[1742717691515,2.37057,2013.1,2013.0,2.86382221]
[1742717692900,2.37057,2013.1,2013.0,1.3772]
[1742717693214,2.37057,2013.1,2013.0,2.86395991]
[1742717695316,0.99367,2013.1,2013.0,2.86395991]
[1742717696212,2.33327,2013.1,2013.0,2.86395991]
[1742717697812,2.33327,2013.1,2013.0,2.8640912]
[1742717699210,2.33327,2013.1,2013.0,2.86412866]
[1742717701109,2.33327,2013.1,2013.0,2.86416925]
[1742717702611,2.33327,2013.1,2013.0,2.86416051]
[1742717706714,2.33327,2013.1,2013.0,2.86435578]
[1742717707420,1.3396,2013.1,2013.0,2.86435578]
[1742717707619,4.2308939,2013.2,2013.0,2.86435578]
[1742717707620,5.2245339,2013.2,2013.0,2.86435578]
[1742717707817,5.2245339,2013.2,2013.1,1.85778299]
[1742717708022,5.2245339,2013.2,2013.1,2.77284291]
[1742717708618,5.2245339,2013.2,2013.1,1.2858]
[1742717708812,5.2245339,2013.2,2013.1,2.77273532]
[1742717709124,5.2245339,2013.2,2013.1,2.77273124]
[1742717710525,1.9525339,2013.2,2013.1,2.77273124]
[1742717710721,1.9525339,2013.2,2013.1,2.77289611]
[1742717711023,1.9525339,2013.2,2013.1,1.85776004]
[1742717711222,3.2404339,2013.2,2013.1,1.85776004]
[1742717712721,3.2404339,2013.2,2013.1,1.85778532]
[1742717714731,3.2404339,2013.2,2013.1,1.85777635]
[1742717716131,3.2404339,2013.2,2013.1,0.57197635]
[1742717716828,0.99372,2013.0,2012.9,4.5769]
[1742717717028,4.26472,2013.0,2012.9,7.20808694]
[1742717717429,5.22332,2013.0,2012.9,7.20808694]
[1742717718333,5.22332,2013.0,2012.9,6.06409262]
[1742717718832,5.22332,2013.0,2012.9,6.05627583]
[1742717720732,5.22332,2013.0,2012.9,6.05637078]
[1742717723341,5.22332,2013.0,2012.9,6.05635994]
[1742717725440,5.22332,2013.0,2012.9,2.84855994]
[1742717726643,5.22332,2013.0,2012.9,0.56902305]
[1742717726937,0.99377,2012.9,2012.8,1.3737]
[1742717727143,3.23047,2012.9,2012.8,2.85350758]
[1742717727338,3.23047,2012.9,2012.8,1.94285676]
[1742717728841,3.23047,2012.9,2012.8,1.93345303]
[1742717734446,3.23047,2012.9,2012.8,1.93308737]
[1742717736152,3.23047,2012.9,2012.8,1.93301561]
[1742717737751,3.23047,2012.9,2012.8,1.3737]
[1742717750255,0.99377,2012.9,2012.8,3.8737]
[1742717750454,0.0073939,2013.2,2012.8,6.07732229]
[1742717750758,1.0010139,2013.2,2013.1,3.2078]
[1742717750957,0.0073939,2013.2,2013.1,4.75329225]
[1742717751259,0.0073939,2013.2,2013.1,3.75962225]
[1742717751646,0.0073939,2013.2,2013.1,6.01259225]
[1742717751857,12.1704969,2013.6,2013.1,6.01259225]
[1742717751858,16.4329469,2013.6,2013.1,5.90107602]
[1742717752058,0.99347,2013.5,2013.4,3.2078]
[1742717752251,0.99347,2013.5,2013.4,5.3722]
[1742717753053,13.4332969,2013.6,2013.4,5.3722]
[1742717753356,14.4267169,2013.6,2013.5,1.3721]
[1742717763476,0.99347,2013.5,2013.4,3.2078]
[1742717763672,4.11797,2013.5,2013.4,3.2078]
[1742717763985,0.99357,2013.3,2013.2,1.2575]
[1742717764477,0.99374,2013.0,2012.8,0.9586]
[1742717764674,0.99374,2013.0,2012.9,1.2575]
[1742717765481,5.239,2013.1,2012.9,2.25127]
[1742717765875,5.239,2013.1,2013.0,1.308]
[1742717766983,4.2453,2013.1,2013.0,2.30172]